[Event "FIDE WYCC Girls U18 2023"]
[Site "Montesilvano"]
[Date "2023.11.13"]
[Round "1.1"]
[White "Alexandrova, Angelina"]
[Black "Wu, Rochelle"]
[Result "0-1"]
[ECO "D02"]
[WhiteElo "1814"]
[BlackElo "2228"]
[Annotator "ChessBase"]
[PlyCount "70"]
[EventDate "2023.11.13"]
[EventType "swiss"]
[EventCountry "ITA"]
[SourceTitle "playchess.com"]
[Source "ChessBase"]
[SourceQuality "1"]
[TimeControl "40/5400+30:1800+30"]

1. d4 {[%emt 0:00:02]} d5 {[%emt 0:00:03]} 2. Nf3 {[%emt 0:00:09]} Nf6 {[%emt 0:00:08]} 3. g3 {[%emt 0:00:09]} c6 {[%emt 0:00:06]} 4. Bg2 {[%emt 0:00:14]} Bg4 {[%emt 0:00:08]} 5. b3 {[%emt 0:00:36]} Nbd7 {[%emt 0:01:10]} 6. Bb2 {[%emt 0:00:50]} e6 {[%emt 0:00:13]} 7. Nbd2 {[%emt 0:01:11]} Be7 {[%emt 0:01:39]} 8. O-O {[%emt 0:00:21]} h6 {[%emt 0:01:13]} 9. Re1 {[%emt 0:02:17]} O-O {[%emt 0:00:22]} 10. e4 {[%emt 0:02:57]} dxe4 {[%emt 0:01:15]} 11. Nxe4 {[%emt 0:00:07]} Nxe4 {[%emt 0:02:28]} 12. Rxe4 {[%emt 0:03:22]} Nf6 {[%emt 0:01:16]} 13. Re1 {[%emt 0:00:28]} Qc7 {[%emt 0:01:27]} 14. c4 {[%emt 0:01:25]} Rad8 {[%emt 0:02:49]} 15. Qe2 {[%emt 0:07:01]} Rfe8 {[%emt 0:07:35]} 16. a3 {[%emt 0:03:48]} Nd7 {[%emt 0:06:38]} 17. h3 {[%emt 0:07:32]} Bh5 {[%emt 0:00:25]} 18. Rad1 {[%emt 0:20:04]} Bf6 {[%emt 0:18:24]} 19. g4 {[%emt 0:01:12]} Bg6 {[%emt 0:03:42]} 20. b4 {[%emt 0:01:55]} a5 {[%emt 0:14:34]} 21. Ne5 {[%emt 0:07:07]} Nxe5 {[%emt 0:04:41]} 22. dxe5 {[%emt 0:00:13]} Be7 {[%emt 0:06:00]} 23. c5 {[%emt 0:05:09]} axb4 {[%emt 0:01:42]} 24. axb4 {[%emt 0:00:11]} b6 {[%emt 0:01:43]} 25. Bd4 {[%emt 0:02:37]} bxc5 {[%emt 0:05:05]} 26. Bxc5 {[%emt 0:00:45]} Bxc5 {[%emt 0:10:27]} 27. bxc5 {[%emt 0:00:09]} Qa5 {[%emt 0:00:26]} 28. Qe3 {[%emt 0:13:57]} Rb8 {[%emt 0:00:08]} 29. Bxc6 {[%emt 0:02:50]} Rec8 {[%emt 0:00:04]} 30. Be4 {[%emt 0:12:08]} Bxe4 {[%emt 0:00:45]} 31. Qxe4 {[%emt 0:03:40]} Rxc5 {[%emt 0:02:45]} 32. Re3 {[%emt 0:00:22]} g5 {[%emt 0:03:12]} 33. Rd7 {[%emt 0:01:01]} Rb4 {[%emt 0:00:11]} 34. Rd4 {[%emt 0:01:07]} Qa1+ {[%emt 0:00:04]} 35. Re1 Qxd4 0-1

[Event "FIDE WYCC Girls U18 2023"]
[Site "Montesilvano"]
[Date "2023.11.13"]
[Round "1.2"]
[White "Wikar, Martyna"]
[Black "Sovetbekova, Nurai"]
[Result "1/2-1/2"]
[ECO "B92"]
[WhiteElo "2228"]
[BlackElo "1801"]
[Annotator "ChessBase"]
[PlyCount "80"]
[EventDate "2023.11.13"]
[EventType "swiss"]
[EventCountry "ITA"]
[SourceTitle "playchess.com"]
[Source "ChessBase"]
[SourceQuality "1"]
[TimeControl "40/5400+30:1800+30"]

1. e4 {[%emt 0:00:05]} c5 {[%emt 0:00:04]} 2. Nf3 {[%emt 0:00:11]} d6 {[%emt 0:00:05]} 3. d4 {[%emt 0:00:09]} cxd4 {[%emt 0:00:04]} 4. Nxd4 {[%emt 0:00:07]} Nf6 {[%emt 0:00:04]} 5. Nc3 {[%emt 0:00:11]} a6 {[%emt 0:00:02]} 6. Be2 {[%emt 0:00:09]} e5 {[%emt 0:00:15]} 7. Nb3 {[%emt 0:00:14]} Be7 {[%emt 0:00:08]} 8. O-O {[%emt 0:00:17]} O-O {[%emt 0:00:05]} 9. Qd3 {[%emt 0:00:30]} Be6 {[%emt 0:00:44]} 10. Bd2 {[%emt 0:00:17]} a5 {[%emt 0:04:49]} 11. a4 {[%emt 0:02:14]} b6 {[%emt 0:00:14]} 12. Rae1 {[%emt 0:03:44]} Na6 {[%emt 0:15:37]} 13. Nd5 {[%emt 0:03:40]} Nd7 {[%emt 0:11:06]} 14. Nxe7+ {[%emt 0:16:06]} Qxe7 {[%emt 0:01:44]} 15. Qg3 {[%emt 0:00:46]} Rfc8 {[%emt 0:10:52]} 16. Bc3 {[%emt 0:02:36]} Nac5 {[%emt 0:09:05]} 17. Nxc5 {[%emt 0:06:27]} Nxc5 {[%emt 0:00:12]} 18. Bb5 {[%emt 0:02:17]} Bd7 {[%emt 0:09:57]} 19. f4 {[%emt 0:06:00]} Bxb5 {[%emt 0:02:23]} 20. axb5 {[%emt 0:00:31]} f6 {[%emt 0:00:46]} 21. b4 {[%emt 0:06:37]} Na4 {[%emt 0:07:44]} 22. Bd2 {[%emt 0:02:24]} axb4 {[%emt 0:01:03]} 23. Bxb4 {[%emt 0:00:38]} Qe6 {[%emt 0:05:17]} 24. Rf2 {[%emt 0:10:33]} Nc5 {[%emt 0:06:23]} 25. h4 {[%emt 0:08:17]} Qc4 {[%emt 0:05:16]} 26. Bxc5 {[%emt 0:01:13]} Qxc5 {[%emt 0:00:04]} 27. Rd1 {[%emt 0:06:52]} Qxb5 {[%emt 0:06:26]} 28. Rxd6 {[%emt 0:03:18]} exf4 {[%emt 0:00:14]} 29. Qxf4 {[%emt 0:03:41]} Qb1+ {[%emt 0:02:12]} 30. Kh2 {[%emt 0:00:13]} Rxc2 {[%emt 0:00:09]} 31. Rxc2 {[%emt 0:03:22]} Qxc2 {[%emt 0:00:02]} 32. e5 {[%emt 0:00:01]} fxe5 {[%emt 0:02:07]} 33. Qxe5 {[%emt 0:00:02]} Qc8 {[%emt 0:01:03]} 34. Rxb6 {[%emt 0:01:04]} Qe8 {[%emt 0:00:33]} 35. Qg3 {[%emt 0:06:32]} Rd8 {[%emt 0:00:37]} 36. Qg5 {[%emt 0:01:46]} Qd7 {[%emt 0:00:27]} 37. Qg3 {[%emt 0:01:44]} Qe8 {[%emt 0:00:02]} 38. Rb7 {[%emt 0:01:27]} Qf8 {[%emt 0:00:08]} 39. h5 {[%emt 0:01:36]} Qf6 {[%emt 0:00:19]} 40. Rb8 {[%emt 0:00:00]} Rxb8 {[%emt 0:00:00]} 1/2-1/2

[Event "FIDE WYCC Girls U18 2023"]
[Site "Montesilvano"]
[Date "2023.11.13"]
[Round "1.3"]
[White "Hernandez Ortega, Carolina"]
[Black "Starosta, Martyna"]
[Result "0-1"]
[ECO "C03"]
[WhiteElo "1796"]
[BlackElo "2208"]
[Annotator "ChessBase"]
[PlyCount "88"]
[EventDate "2023.11.13"]
[EventType "swiss"]
[EventCountry "ITA"]
[SourceTitle "playchess.com"]
[Source "ChessBase"]
[SourceQuality "1"]
[TimeControl "40/5400+30:1800+30"]

1. e4 {[%emt 0:00:06]} e6 {[%emt 0:00:12]} 2. d4 {[%emt 0:00:13]} d5 {[%emt 0:00:05]} 3. Nd2 {[%emt 0:00:22]} Be7 {[%emt 0:00:06]} 4. c3 {[%emt 0:01:06]} c5 {[%emt 0:02:43]} 5. Bd3 {[%emt 0:00:50]} Nc6 {[%emt 0:01:51]} 6. Ne2 {[%emt 0:00:40]} cxd4 {[%emt 0:07:50]} 7. Nxd4 {[%emt 0:03:43]} Nxd4 {[%emt 0:06:04]} 8. cxd4 {[%emt 0:00:08]} Qb6 {[%emt 0:00:32]} 9. O-O {[%emt 0:07:48]} Qxd4 {[%emt 0:08:51]} 10. Nf3 {[%emt 0:00:30]} Qb6 {[%emt 0:04:40]} 11. Be3 {[%emt 0:03:08]} Qd8 {[%emt 0:00:28]} 12. Qc2 {[%emt 0:10:23]} Nf6 {[%emt 0:08:32]} 13. e5 {[%emt 0:04:45]} Nd7 {[%emt 0:00:30]} 14. Bxh7 {[%emt 0:12:47]} b6 {[%emt 0:02:56]} 15. Bd3 {[%emt 0:07:47]} Nc5 {[%emt 0:04:46]} 16. Be2 {[%emt 0:00:17]} Bb7 {[%emt 0:03:57]} 17. b4 {[%emt 0:07:16]} Ne4 {[%emt 0:04:54]} 18. Qa4+ {[%emt 0:11:46]} Kf8 {[%emt 0:00:11]} 19. Rac1 {[%emt 0:00:07]} a5 {[%emt 0:13:37]} 20. bxa5 {[%emt 0:10:12]} Rxa5 {[%emt 0:00:49]} 21. Qc2 {[%emt 0:00:09]} Bc5 {[%emt 0:01:55]} 22. Bd3 {[%emt 0:08:16]} Qa8 {[%emt 0:05:23]} 23. Ra1 {[%emt 0:04:50]} Ba6 {[%emt 0:01:02]} 24. Bxa6 {[%emt 0:00:32]} Qxa6 {[%emt 0:01:50]} 25. Nd2 {[%emt 0:00:31]} Nxd2 {[%emt 0:05:54]} 26. Qxd2 {[%emt 0:00:52]} Rh5 {[%emt 0:06:53]} 27. Bf4 {[%emt 0:01:33]} Ra3 {[%emt 0:01:56]} 28. Rfc1 {[%emt 0:00:17]} Rh4 {[%emt 0:01:13]} 29. g3 {[%emt 0:00:26]} Rh5 {[%emt 0:02:09]} 30. Rc3 {[%emt 0:00:43]} Bxf2+ {[%emt 0:01:02]} 31. Kg2 {[%emt 0:02:19]} Bc5 {[%emt 0:02:13]} 32. Rxa3 {[%emt 0:01:07]} Qxa3 {[%emt 0:00:03]} 33. Rc1 {[%emt 0:00:37]} Qa4 {[%emt 0:01:04]} 34. Qe2 {[%emt 0:00:47]} Rf5 {[%emt 0:00:24]} 35. Qc2 {[%emt 0:00:30]} Qxc2+ {[%emt 0:00:41]} 36. Rxc2 {[%emt 0:00:06]} g5 {[%emt 0:00:04]} 37. Bc1 {[%emt 0:00:50]} Rxe5 {[%emt 0:00:03]} 38. a4 {[%emt 0:00:20]} d4 {[%emt 0:00:15]} 39. Rd2 {[%emt 0:00:32]} Rd5 {[%emt 0:00:39]} 40. Rd3 {[%emt 0:00:00]} g4 {[%emt 0:00:00]} 41. h4 {[%emt 0:02:23]} e5 {[%emt 0:02:28]} 42. Kf2 {[%emt 0:00:28]} e4 {[%emt 0:00:18]} 43. Rd1 {[%emt 0:00:09]} d3+ {[%emt 0:00:36]} 44. Be3 {[%emt 0:00:10]} Rf5+ {[%emt 0:00:04]} 0-1

[Event "FIDE WYCC Girls U18 2023"]
[Site "Montesilvano"]
[Date "2023.11.13"]
[Round "1.4"]
[White "Balabayeva, Xeniya"]
[Black "Egger, Stefanie"]
[Result "1-0"]
[ECO "D00"]
[WhiteElo "2192"]
[BlackElo "1784"]
[Annotator "ChessBase"]
[PlyCount "79"]
[EventDate "2023.11.13"]
[EventType "swiss"]
[EventCountry "ITA"]
[SourceTitle "playchess.com"]
[Source "ChessBase"]
[SourceQuality "1"]
[TimeControl "40/5400+30:1800+30"]

1. d4 {[%emt 0:00:03]} d5 {[%emt 0:00:11]} 2. Bf4 {[%emt 0:00:13]} e6 {[%emt 0:00:15]} 3. e3 {[%emt 0:00:24]} Nf6 {[%emt 0:00:23]} 4. Nf3 {[%emt 0:00:15]} Bd6 {[%emt 0:00:26]} 5. Ne5 {[%emt 0:00:22]} O-O {[%emt 0:01:34]} 6. Nd2 {[%emt 0:01:43]} c5 {[%emt 0:00:48]} 7. c3 {[%emt 0:00:39]} Nc6 {[%emt 0:01:58]} 8. Bd3 {[%emt 0:01:37]} Qc7 {[%emt 0:14:57]} 9. Ndf3 {[%emt 0:01:10]} Nd7 {[%emt 0:02:59]} 10. Nxc6 {[%emt 0:04:35]} bxc6 {[%emt 0:05:42]} 11. Bg3 {[%emt 0:48:05]} h6 {[%emt 0:03:28]} 12. O-O {[%emt 0:01:03]} Bxg3 {[%emt 0:00:27]} 13. hxg3 {[%emt 0:00:22]} cxd4 {[%emt 0:10:31]} 14. cxd4 {[%emt 0:03:40]} c5 {[%emt 0:03:29]} 15. Rc1 {[%emt 0:04:38]} Qa5 {[%emt 0:02:40]} 16. dxc5 {[%emt 0:06:56]} Nxc5 {[%emt 0:00:57]} 17. Bb1 {[%emt 0:01:26]} Ba6 {[%emt 0:03:39]} 18. Re1 {[%emt 0:00:05]} Rfc8 {[%emt 0:02:38]} 19. Ne5 {[%emt 0:03:02]} Qd8 {[%emt 0:06:29]} 20. Qd4 {[%emt 0:02:46]} Qe7 {[%emt 0:11:21]} 21. Rc3 {[%emt 0:02:23]} Qd6 {[%emt 0:18:03]} 22. Rec1 {[%emt 0:02:36]} Nd7 {[%emt 0:00:37]} 23. Nc6 {[%emt 0:03:04]} Nb6 {[%emt 0:04:18]} 24. b3 {[%emt 0:06:59]} Bb7 {[%emt 0:01:32]} 25. Na5 {[%emt 0:00:57]} Ba6 {[%emt 0:00:23]} 26. b4 {[%emt 0:02:29]} e5 {[%emt 0:01:04]} 27. Qd2 {[%emt 0:00:51]} d4 {[%emt 0:00:31]} 28. Rc5 {[%emt 0:01:05]} Na4 {[%emt 0:00:26]} 29. Rc6 {[%emt 0:00:13]} Qd5 {[%emt 0:01:52]} 30. Rxa6 {[%emt 0:00:18]} Rxc1+ {[%emt 0:00:05]} 31. Qxc1 {[%emt 0:00:08]} Nc3 {[%emt 0:00:13]} 32. Qc2 {[%emt 0:01:24]} Qb5 {[%emt 0:00:18]} 33. Qh7+ {[%emt 0:00:18]} Kf8 {[%emt 0:00:04]} 34. Bd3 {[%emt 0:00:10]} Qd5 {[%emt 0:00:26]} 35. Qh8+ {[%emt 0:00:44]} Ke7 {[%emt 0:00:06]} 36. Qxg7 {[%emt 0:00:04]} e4 {[%emt 0:00:46]} 37. Bc4 {[%emt 0:00:26]} Qh5 {[%emt 0:01:16]} 38. Qxd4 {[%emt 0:00:39]} Rd8 {[%emt 0:00:40]} 39. Rxa7+ {[%emt 0:00:08]} Ke8 {[%emt 0:00:08]} 40. Qh8# {[%emt 0:00:00]} 1-0

[Event "FIDE WYCC Girls U18 2023"]
[Site "Montesilvano"]
[Date "2023.11.13"]
[Round "1.5"]
[White "Graziani, Emma"]
[Black "Allahverdiyeva, Ayan"]
[Result "0-1"]
[ECO "B50"]
[WhiteElo "1783"]
[BlackElo "2152"]
[Annotator "ChessBase"]
[PlyCount "76"]
[EventDate "2023.11.13"]
[EventType "swiss"]
[EventCountry "ITA"]
[SourceTitle "playchess.com"]
[Source "ChessBase"]
[SourceQuality "1"]
[TimeControl "40/5400+30:1800+30"]

1. e4 {[%emt 0:00:02]} c5 {[%emt 0:00:39]} 2. Nf3 {[%emt 0:00:07]} d6 {[%emt 0:00:05]} 3. d3 {[%emt 0:00:05]} g6 {[%emt 0:00:53]} 4. g3 {[%emt 0:00:06]} Bg7 {[%emt 0:00:04]} 5. Bg2 {[%emt 0:00:04]} Nc6 {[%emt 0:00:31]} 6. O-O {[%emt 0:00:09]} Nf6 {[%emt 0:00:23]} 7. Nbd2 {[%emt 0:00:08]} O-O {[%emt 0:00:06]} 8. Re1 {[%emt 0:00:09]} e5 {[%emt 0:00:50]} 9. c3 {[%emt 0:00:19]} h6 {[%emt 0:05:27]} 10. Nf1 {[%emt 0:02:17]} b5 {[%emt 0:01:11]} 11. Ne3 {[%emt 0:00:07]} a5 {[%emt 0:00:05]} 12. Nd5 {[%emt 0:00:25]} Nxd5 {[%emt 0:03:02]} 13. exd5 {[%emt 0:00:06]} Ne7 {[%emt 0:00:02]} 14. c4 {[%emt 0:01:29]} bxc4 {[%emt 0:08:21]} 15. dxc4 {[%emt 0:00:34]} a4 {[%emt 0:00:28]} 16. Nd2 {[%emt 0:02:29]} Bd7 {[%emt 0:01:36]} 17. Ne4 {[%emt 0:02:09]} Nc8 {[%emt 0:00:29]} 18. Nc3 {[%emt 0:01:07]} Nb6 {[%emt 0:01:01]} 19. Bf1 {[%emt 0:00:53]} f5 {[%emt 0:05:41]} 20. a3 {[%emt 0:06:30]} Bc8 {[%emt 0:03:00]} 21. b4 {[%emt 0:02:25]} e4 {[%emt 0:02:01]} 22. Bd2 {[%emt 0:01:23]} Nd7 {[%emt 0:02:47]} 23. f4 {[%emt 0:02:22]} exf3 {[%emt 0:14:42]} 24. Qxf3 {[%emt 0:01:27]} Bd4+ {[%emt 0:00:08]} 25. Kg2 {[%emt 0:01:44]} Ne5 {[%emt 0:00:34]} 26. Qd1 {[%emt 0:03:41]} f4 {[%emt 0:02:45]} 27. Rxe5 {[%emt 0:10:26]} dxe5 {[%emt 0:02:29]} 28. bxc5 {[%emt 0:00:32]} fxg3 {[%emt 0:03:17]} 29. hxg3 {[%emt 0:00:12]} h5 {[%emt 0:03:46]} 30. Rb1 {[%emt 0:01:01]} Rf2+ {[%emt 0:03:19]} 31. Kh1 {[%emt 0:00:09]} Bg4 {[%emt 0:00:08]} 32. Be2 {[%emt 0:01:47]} Bxe2 {[%emt 0:04:16]} 33. Nxe2 {[%emt 0:00:07]} Qd7 {[%emt 0:00:02]} 34. Ng1 {[%emt 0:00:44]} Qf5 {[%emt 0:00:02]} 35. Qe1 {[%emt 0:01:23]} Rxd2 {[%emt 0:01:07]} 36. Qxd2 {[%emt 0:01:09]} Qxb1 {[%emt 0:00:11]} 37. Qg2 {[%emt 0:00:03]} Bxc5 {[%emt 0:01:52]} 38. d6 {[%emt 0:00:22]} Qxg1+ {[%emt 0:00:08]} 0-1

[Event "FIDE WYCC Girls U18 2023"]
[Site "Montesilvano"]
[Date "2023.11.13"]
[Round "1.6"]
[White "Zhurova, Anna"]
[Black "Soares, Sara Joana De Moura "]
[Result "1-0"]
[ECO "C11"]
[WhiteElo "2149"]
[BlackElo "1772"]
[Annotator "NA"]
[PlyCount "65"]
[EventDate "2023.11.13"]
[EventType "swiss"]
[EventCountry "ITA"]
[SourceTitle "playchess.com"]
[Source "ChessBase"]
[SourceQuality "1"]
[TimeControl "40/5400+30:1800+30"]

1. e4 {[%emt 0:00:01]} e6 {[%emt 0:00:36]} 2. d4 {[%emt 0:00:20]} d5 {[%emt 0:00:20]} 3. Nc3 {[%emt 0:00:15]} Nf6 {[%emt 0:00:16]} 4. e5 {[%emt 0:00:25]} Nfd7 {[%emt 0:00:26]} 5. f4 {[%emt 0:01:11]} c5 {[%emt 0:02:34]} 6. Nf3 {[%emt 0:00:19]} Nc6 {[%emt 0:01:07]} 7. Be3 {[%emt 0:00:54]} a6 {[%emt 0:03:50]} 8. Ne2 {[%emt 0:04:49]} cxd4 {[%emt 0:11:50]} 9. Nexd4 {[%emt 0:01:25]} Be7 {[%emt 0:02:08]} 10. c3 {[%emt 0:12:18]} g6 {[%emt 0:13:02]} 11. Bd3 {[%emt 0:03:40]} Qc7 {[%emt 0:04:57]} 12. O-O {[%emt 0:03:25]} O-O {[%emt 0:05:00]} 13. h4 {[%emt 0:00:51]} b5 {[%emt 0:11:57]} 14. h5 {[%emt 0:03:25]} Na5 {[%emt 0:04:49]} 15. hxg6 {[%emt 0:12:42]} hxg6 {[%emt 0:02:33]} 16. Qc2 {[%emt 0:07:48]} Nc5 {[%emt 0:09:31]} 17. Bxg6 {[%emt 0:03:58]} Nc4 {[%emt 0:01:36]} 18. Bh7+ {[%emt 0:06:27]} Kg7 {[%emt 0:01:24]} 19. Bc1 {[%emt 0:00:48]} Bd7 {[%emt 0:08:36]} 20. b3 {[%emt 0:02:34]} Nb6 {[%emt 0:00:53]} 21. f5 {[%emt 0:02:33]} exf5 {[%emt 0:02:20]} 22. Bxf5 {[%emt 0:00:44]} Rh8 {[%emt 0:04:42]} 23. Bxd7 {[%emt 0:04:02]} Qxd7 {[%emt 0:00:58]} 24. e6 {[%emt 0:02:14]} Qc7 {[%emt 0:05:03]} 25. Qf5 {[%emt 0:06:57]} Nxe6 {[%emt 0:01:50]} 26. Qxe6 {[%emt 0:02:12]} fxe6 {[%emt 0:00:35]} 27. Nxe6+ {[%emt 0:00:05]} Kf7 {[%emt 0:00:31]} 28. Nxc7 {[%emt 0:00:07]} Ra7 {[%emt 0:00:31]} 29. Nd4+ {[%emt 0:00:55]} Kg6 {[%emt 0:00:33]} 30. Nce6 {[%emt 0:00:10]} Bd6 {[%emt 0:00:12]} 31. Bf4 {[%emt 0:00:08]} Bxf4 {[%emt 0:00:48]} 32. Rxf4 {[%emt 0:00:11]} Rah7 {[%emt 0:00:22]} 33. Nf8+ {[%emt 0:00:10]} 1-0

[Event "FIDE WYCC Girls U18 2023"]
[Site "Montesilvano"]
[Date "2023.11.13"]
[Round "1.7"]
[White "Keerti Shree Reddy"]
[Black "Abrisqueta Zudaire, Leyre"]
[Result "1/2-1/2"]
[ECO "B44"]
[WhiteElo "1741"]
[BlackElo "2137"]
[Annotator "ChessBase"]
[PlyCount "128"]
[EventDate "2023.11.13"]
[EventType "swiss"]
[EventCountry "ITA"]
[SourceTitle "playchess.com"]
[Source "ChessBase"]
[SourceQuality "1"]
[TimeControl "40/5400+30:1800+30"]

1. e4 {[%emt 0:00:48]} c5 {[%emt 0:00:08]} 2. Nf3 {[%emt 0:00:06]} e6 {[%emt 0:00:12]} 3. d4 {[%emt 0:00:07]} cxd4 {[%emt 0:00:12]} 4. Nxd4 {[%emt 0:00:06]} Nc6 {[%emt 0:00:10]} 5. a3 {[%emt 0:02:00]} Bc5 {[%emt 0:01:40]} 6. Nb3 {[%emt 0:05:09]} Bb6 {[%emt 0:00:25]} 7. Bd3 {[%emt 0:03:32]} Nge7 {[%emt 0:02:01]} 8. Nc3 {[%emt 0:02:13]} O-O {[%emt 0:02:34]} 9. O-O {[%emt 0:01:27]} f5 {[%emt 0:04:29]} 10. Be3 {[%emt 0:10:34]} fxe4 {[%emt 0:21:08]} 11. Bxb6 {[%emt 0:05:18]} axb6 {[%emt 0:00:58]} 12. Nxe4 {[%emt 0:03:15]} d5 {[%emt 0:06:29]} 13. Ng3 {[%emt 0:11:34]} Ra4 {[%emt 0:20:15]} 14. c3 {[%emt 0:04:09]} Raf4 {[%emt 0:02:52]} 15. Qc2 {[%emt 0:01:42]} g6 {[%emt 0:03:24]} 16. Rad1 {[%emt 0:09:28]} Ne5 {[%emt 0:06:46]} 17. Bb5 {[%emt 0:08:33]} Qc7 {[%emt 0:14:18]} 18. h3 {[%emt 0:05:49]} Nf5 {[%emt 0:01:04]} 19. Nxf5 {[%emt 0:06:47]} R8xf5 {[%emt 0:01:34]} 20. Nd4 {[%emt 0:07:26]} Rf6 {[%emt 0:01:12]} 21. f3 {[%emt 0:04:52]} Rf8 {[%emt 0:04:14]} 22. Qe2 {[%emt 0:00:47]} Nf7 {[%emt 0:01:19]} 23. Kh1 {[%emt 0:01:13]} e5 {[%emt 0:00:50]} 24. Nc2 {[%emt 0:01:15]} Qc5 {[%emt 0:00:18]} 25. Nb4 {[%emt 0:00:48]} e4 {[%emt 0:02:25]} 26. Rxd5 {[%emt 0:01:19]} exf3 {[%emt 0:00:42]} 27. Rxf3 {[%emt 0:00:29]} Qc7 {[%emt 0:00:26]} 28. Rxf4 {[%emt 0:00:33]} Qxf4 {[%emt 0:00:01]} 29. Rd4 {[%emt 0:00:20]} Qg5 {[%emt 0:00:58]} 30. Nd5 {[%emt 0:01:13]} Kg7 {[%emt 0:01:11]} 31. Nxb6 {[%emt 0:00:39]} Bf5 {[%emt 0:00:37]} 32. Bd3 {[%emt 0:00:24]} Bxd3 {[%emt 0:00:17]} 33. Rxd3 {[%emt 0:00:04]} Qb5 {[%emt 0:00:48]} 34. Nd5 {[%emt 0:00:37]} Re8 {[%emt 0:00:20]} 35. Qf3 {[%emt 0:00:50]} Re1+ {[%emt 0:00:13]} 36. Kh2 {[%emt 0:00:03]} Qc6 {[%emt 0:00:21]} 37. Qf4 {[%emt 0:01:27]} g5 {[%emt 0:01:17]} 38. Qd4+ {[%emt 0:00:29]} Kg6 {[%emt 0:00:31]} 39. Rf3 {[%emt 0:01:39]} Qd6+ {[%emt 0:00:37]} 40. g3 {[%emt 0:00:00]} Ne5 {[%emt 0:00:00]} 41. Rf2 {[%emt 0:01:11]} Qe6 {[%emt 0:06:09]} 42. Qb6 {[%emt 0:04:03]} Qxb6 {[%emt 0:01:42]} 43. Nxb6 {[%emt 0:00:06]} g4 {[%emt 0:00:04]} 44. Kg2 {[%emt 0:04:19]} h5 {[%emt 0:01:54]} 45. hxg4 {[%emt 0:02:31]} hxg4 {[%emt 0:01:12]} 46. Rf4 {[%emt 0:04:04]} Re2+ {[%emt 0:00:10]} 47. Kf1 {[%emt 0:00:22]} Rxb2 {[%emt 0:00:14]} 48. Nc4 {[%emt 0:00:25]} Nxc4 {[%emt 0:06:05]} 49. Rxg4+ {[%emt 0:00:39]} Kf5 {[%emt 0:00:08]} 50. Rxc4 {[%emt 0:00:08]} b5 {[%emt 0:04:19]} 51. Rb4 {[%emt 0:03:05]} Ra2 {[%emt 0:02:36]} 52. Rxb5+ {[%emt 0:04:38]} Kg4 {[%emt 0:00:06]} 53. Rb3 {[%emt 0:03:13]} Kxg3 {[%emt 0:00:10]} 54. c4+ {[%emt 0:03:28]} Kf4 {[%emt 0:00:08]} 55. Rc3 {[%emt 0:01:02]} Ke5 {[%emt 0:01:31]} 56. c5 {[%emt 0:00:35]} Rb2 {[%emt 0:01:42]} 57. a4 {[%emt 0:01:25]} Rb8 {[%emt 0:01:17]} 58. a5 {[%emt 0:01:34]} Kd5 {[%emt 0:00:53]} 59. c6 {[%emt 0:01:01]} Kd6 {[%emt 0:00:45]} 60. c7 {[%emt 0:01:06]} Rc8 {[%emt 0:00:08]} 61. a6 {[%emt 0:00:15]} Rxc7 {[%emt 0:00:23]} 62. Rxc7 {[%emt 0:00:08]} Kxc7 {[%emt 0:00:03]} 63. Ke2 {[%emt 0:00:06]} Kb6 {[%emt 0:00:03]} 64. a7 {[%emt 0:00:04]} Kxa7 {[%emt 0:00:04]} 1/2-1/2

[Event "FIDE WYCC Girls U18 2023"]
[Site "Montesilvano"]
[Date "2023.11.13"]
[Round "1.8"]
[White "Mungunzul, Bat-Erdene"]
[Black "O'Carroll, Om"]
[Result "1-0"]
[ECO "D15"]
[WhiteElo "2111"]
[BlackElo "1737"]
[Annotator "NA"]
[PlyCount "77"]
[EventDate "2023.11.13"]
[EventType "swiss"]
[EventCountry "ITA"]
[SourceTitle "playchess.com"]
[Source "ChessBase"]
[SourceQuality "1"]
[TimeControl "40/5400+30:1800+30"]

1. d4 {[%emt 0:00:02]} d5 {[%emt 0:00:05]} 2. c4 {[%emt 0:00:13]} c6 {[%emt 0:00:05]} 3. Nc3 {[%emt 0:00:12]} Nf6 {[%emt 0:00:11]} 4. Nf3 {[%emt 0:00:23]} a6 {[%emt 0:00:13]} 5. c5 {[%emt 0:02:16]} Bf5 {[%emt 0:00:31]} 6. h3 {[%emt 0:01:16]} e6 {[%emt 0:04:42]} 7. Qb3 {[%emt 0:03:59]} Ra7 {[%emt 0:00:43]} 8. Bf4 {[%emt 0:00:55]} Nbd7 {[%emt 0:02:08]} 9. Rc1 {[%emt 0:02:19]} Be7 {[%emt 0:02:25]} 10. e3 {[%emt 0:00:33]} O-O {[%emt 0:03:48]} 11. Be2 {[%emt 0:00:45]} Re8 {[%emt 0:03:59]} 12. O-O {[%emt 0:08:38]} Ne4 {[%emt 0:03:58]} 13. Nxe4 {[%emt 0:04:47]} Bxe4 {[%emt 0:02:37]} 14. Nd2 {[%emt 0:02:20]} Bg6 {[%emt 0:02:11]} 15. Bd3 {[%emt 0:03:20]} Bxd3 {[%emt 0:12:24]} 16. Qxd3 {[%emt 0:00:09]} Nf6 {[%emt 0:04:04]} 17. Rc2 {[%emt 0:02:59]} Qd7 {[%emt 0:04:30]} 18. Rb1 {[%emt 0:06:54]} Bd8 {[%emt 0:02:30]} 19. b4 {[%emt 0:01:47]} Bc7 {[%emt 0:02:50]} 20. Bg5 {[%emt 0:00:35]} Bd8 {[%emt 0:01:23]} 21. f4 {[%emt 0:05:37]} Nh5 {[%emt 0:06:40]} 22. g4 {[%emt 0:03:46]} Nf6 {[%emt 0:10:00]} 23. Bxf6 {[%emt 0:03:14]} Bxf6 {[%emt 0:00:09]} 24. g5 {[%emt 0:00:12]} Bd8 {[%emt 0:00:44]} 25. Nf3 {[%emt 0:00:21]} Bc7 {[%emt 0:13:18]} 26. Kh2 {[%emt 0:02:18]} b6 {[%emt 0:04:50]} 27. cxb6 {[%emt 0:00:45]} Bxb6 {[%emt 0:00:06]} 28. Ne5 {[%emt 0:00:11]} Qb7 {[%emt 0:03:00]} 29. Nxc6 {[%emt 0:02:07]} Raa8 {[%emt 0:00:11]} 30. Rbc1 {[%emt 0:00:50]} Kh8 {[%emt 0:06:10]} 31. Ne5 {[%emt 0:00:39]} f6 {[%emt 0:01:08]} 32. gxf6 {[%emt 0:01:36]} gxf6 {[%emt 0:00:08]} 33. Ng4 {[%emt 0:00:09]} Qg7 {[%emt 0:02:12]} 34. Rg2 {[%emt 0:00:44]} Rg8 {[%emt 0:01:01]} 35. Rcg1 {[%emt 0:02:17]} Qe7 {[%emt 0:00:39]} 36. Nh6 {[%emt 0:03:14]} Rxg2+ {[%emt 0:00:39]} 37. Rxg2 {[%emt 0:00:07]} e5 {[%emt 0:01:19]} 38. dxe5 {[%emt 0:01:21]} fxe5 {[%emt 0:01:10]} 39. Qxd5 {[%emt 0:00:07]} 1-0